[Event "Polofinale MCR junioru 2023"]
[Site "Czech Republic"]
[Date "2023.11.17"]
[Round "8.5"]
[White "Kubiczek, Michal"]
[Black "Vilimek, Vit"]
[Result "1/2-1/2"]
[TimeControl "90 min per 40 moves + 15 min + 30 sec / move from move 1"]
[WhiteFideId "23706996"]
[BlackFideId "23718218"]
[WhiteElo "2068"]
[BlackElo "2163"]

1. d4 {[%clk 01:30:55]} {[%emt 00:00:04]} Nf6 {[%clk 01:30:37]} {[%emt
00:00:24]} 2. c4 {[%clk 01:31:03]} {[%emt 00:00:22]} g6 {[%clk 01:30:25]}
{[%emt 00:00:43]} 3. g3 {[%clk 01:31:10]} {[%emt 00:00:23]} c5 {[%clk
01:30:38]} {[%emt 00:00:17]} 4. d5 {[%clk 01:27:47]} {[%emt 00:03:53]} b5
{[%clk 01:31:04]} {[%emt 00:00:04]} 5. cxb5 {[%clk 01:22:12]} {[%emt 00:06:05]}
a6 {[%clk 01:31:29]} {[%emt 00:00:05]} 6. bxa6 {[%clk 01:20:48]} {[%emt
00:01:53]} Bxa6 {[%clk 01:31:43]} {[%emt 00:00:16]} 7. Nc3 {[%clk 01:19:28]}
{[%emt 00:01:51]} d6 {[%clk 01:31:48]} {[%emt 00:00:25]} 8. Nf3 {[%clk
01:17:25]} {[%emt 00:02:31]} Bg7 {[%clk 01:32:10]} {[%emt 00:00:09]} 9. Bg2
{[%clk 01:17:48]} {[%emt 00:00:06]} O-O {[%clk 01:31:55]} {[%emt 00:00:46]} 10.
O-O {[%clk 01:18:06]} {[%emt 00:00:12]} Nbd7 {[%clk 01:32:24]} {[%emt
00:00:01]} 11. Rb1 {[%clk 01:06:37]} {[%emt 00:11:59]} Nb6 {[%clk 01:31:18]}
{[%emt 00:01:36]} 12. Re1 {[%clk 00:59:04]} {[%emt 00:08:03]} Bc4 {[%clk
01:31:16]} {[%emt 00:00:33]} 13. e4 {[%clk 00:46:20]} {[%emt 00:13:13]} Bxa2
{[%clk 01:31:05]} {[%emt 00:00:41]} 14. Nxa2 {[%clk 00:46:15]} {[%emt
00:00:35]} Rxa2 {[%clk 01:31:33]} {[%emt 00:00:02]} 15. b4 {[%clk 00:43:47]}
{[%emt 00:02:58]} c4 {[%clk 01:27:09]} {[%emt 00:04:54]} 16. Bb2 {[%clk
00:42:03]} {[%emt 00:02:13]} Rxb2 {[%clk 01:18:02]} {[%emt 00:09:38]} 17. Rxb2
{[%clk 00:41:44]} {[%emt 00:00:49]} Nxe4 {[%clk 01:18:07]} {[%emt 00:00:25]} 18.
Nd4 {[%clk 00:32:54]} {[%emt 00:09:18]} Nc3 {[%clk 01:12:30]} {[%emt 00:06:09]}
19. Qd2 {[%clk 00:26:49]} {[%emt 00:06:35]} Nca4 {[%clk 01:01:04]} {[%emt
00:11:57]} 20. Rc2 {[%clk 00:17:50]} {[%emt 00:09:29]} Qd7 {[%clk 00:34:46]}
{[%emt 00:26:47]} 21. Nc6 {[%clk 00:13:37]} {[%emt 00:04:44]} Re8 {[%clk
00:25:39]} {[%emt 00:09:37]} 22. Qe2 {[%clk 00:13:21]} {[%emt 00:00:46]} Nc3
{[%clk 00:21:05]} {[%emt 00:05:04]} 23. Qd2 {[%clk 00:12:11]} {[%emt 00:01:40]}
Nb5 {[%clk 00:20:59]} {[%emt 00:00:36]} 24. Rec1 {[%clk 00:11:34]} {[%emt
00:01:07]} Ra8 {[%clk 00:10:19]} {[%emt 00:11:09]} 25. Rxc4 {[%clk 00:09:39]}
{[%emt 00:02:26]} Nxc4 {[%clk 00:10:11]} {[%emt 00:00:38]} 26. Rxc4 {[%clk
00:10:07]} {[%emt 00:00:02]} Bf6 {[%clk 00:09:51]} {[%emt 00:00:50]} 27. Rc1
{[%clk 00:09:50]} {[%emt 00:00:47]} Ra3 {[%clk 00:07:36]} {[%emt 00:02:44]} 28.
Qe2 {[%clk 00:08:56]} {[%emt 00:01:24]} Nc3 {[%clk 00:07:02]} {[%emt 00:01:04]}
29. Qc4 {[%clk 00:09:17]} {[%emt 00:00:10]} Qb7 {[%clk 00:05:02]} {[%emt
00:02:30]} 30. Bf1 {[%clk 00:08:44]} {[%emt 00:01:02]} Qb6 {[%clk 00:05:20]}
{[%emt 00:00:12]} 31. Nxe7+ {[%clk 00:08:45]} {[%emt 00:00:31]} Kg7 {[%clk
00:01:22]} {[%emt 00:04:27]} 32. Nc8 {[%clk 00:08:09]} {[%emt 00:01:06]} Qd4
{[%clk 00:01:18]} {[%emt 00:00:33]} 33. Nxd6 {[%clk 00:05:33]} {[%emt
00:03:05]} Ra2 {[%clk 00:01:08]} {[%emt 00:00:42]} 34. Ne4 {[%clk 00:03:57]}
{[%emt 00:02:06]} Qxe4 {[%clk 00:00:48]} {[%emt 00:00:49]} 35. Rxc3 {[%clk
00:04:21]} {[%emt 00:00:07]} Qb1 {[%clk 00:00:44]} {[%emt 00:00:34]} 36. Rb3
{[%clk 00:03:00]} {[%emt 00:01:51]} Qe1 {[%clk 00:00:37]} {[%emt 00:00:37]} 37.
Rf3 {[%clk 00:02:31]} {[%emt 00:00:59]} Qd2 {[%clk 00:00:56]} {[%emt 00:00:11]}
38. d6 {[%clk 00:02:28]} {[%emt 00:00:33]} Rb2 {[%clk 00:00:34]} {[%emt
00:00:51]} 39. Qf4 {[%clk 00:02:04]} {[%emt 00:00:54]} Qxf4 {[%clk 00:00:40]}
{[%emt 00:00:24]} 40. Rxf4 {[%clk 00:02:33]} {[%emt 00:00:02]} Rd2 {[%clk
00:00:48]} {[%emt 00:00:21]} 41. Bc4 {[%clk 00:13:56]} {[%emt 00:04:36]} Rxd6
{[%clk 00:16:23]} {[%emt 00:00:26]} 42. b5 {[%clk 00:13:59]} {[%emt 00:00:28]}
g5 {[%clk 00:15:11]} {[%emt 00:01:42]} 43. Rf3 {[%clk 00:12:11]} {[%emt
00:02:17]} Rd4 {[%clk 00:15:20]} {[%emt 00:00:21]} 44. Bf1 {[%clk 00:10:25]}
{[%emt 00:02:16]} Rb4 {[%clk 00:15:38]} {[%emt 00:00:11]} 45. Kg2 {[%clk
00:10:30]} {[%emt 00:00:27]} Bd4 {[%clk 00:15:25]} {[%emt 00:00:43]} 46. Rf5
{[%clk 00:10:06]} {[%emt 00:00:53]} f6 {[%clk 00:14:49]} {[%emt 00:01:06]} 47.
g4 {[%clk 00:09:25]} {[%emt 00:01:11]} Rb2 {[%clk 00:15:12]} {[%emt 00:00:06]}
48. Bd3 {[%clk 00:09:16]} {[%emt 00:00:40]} h6 {[%clk 00:14:52]} {[%emt
00:00:50]} 49. Be4 {[%clk 00:09:14]} {[%emt 00:00:33]} Kf8 {[%clk 00:13:56]}
{[%emt 00:01:26]} 50. Bc6 {[%clk 00:09:06]} {[%emt 00:00:37]} Ke7 {[%clk
00:14:13]} {[%emt 00:00:10]} 51. Kg3 {[%clk 00:09:03]} {[%emt 00:00:36]} Kd6
{[%clk 00:13:58]} {[%emt 00:00:45]} 52. h4 {[%clk 00:09:07]} {[%emt 00:00:26]}
Rb3+ {[%clk 00:13:54]} {[%emt 00:00:34]} 53. Rf3 {[%clk 00:07:05]} {[%emt
00:02:33]} Rb2 {[%emt 00:00:17]} 54. Kg2 Ke7 {[%emt 00:00:02]} 1/2-1/2

[Event "Polofinale MCR junioru 2023"]
[Site "Czech Republic"]
[Date "2023.11.17"]
[Round "8.6"]
[White "Janous, Marek"]
[Black "Pavlis, Matej"]
[Result "1-0"]
[TimeControl "90 min per 40 moves + 15 min + 30 sec / move from move 1"]
[WhiteFideId "23709650"]
[BlackFideId "23735767"]
[WhiteElo "2098"]
[BlackElo "1974"]

1. e4 {[%clk 01:30:56]} {[%emt 00:00:04]} c5 {[%clk 01:30:56]} {[%emt
00:00:04]} 2. Nf3 {[%clk 01:31:21]} {[%emt 00:00:05]} e6 {[%clk 01:31:23]}
{[%emt 00:00:04]} 3. g3 {[%clk 01:31:00]} {[%emt 00:00:51]} Nc6 {[%clk
01:31:33]} {[%emt 00:00:19]} 4. Bg2 {[%clk 01:31:24]} {[%emt 00:00:05]} Nf6
{[%clk 01:31:59]} {[%emt 00:00:05]} 5. Qe2 {[%clk 01:31:48]} {[%emt 00:00:05]}
e5 {[%clk 01:31:33]} {[%emt 00:00:57]} 6. O-O {[%clk 01:32:07]} {[%emt
00:00:10]} Be7 {[%clk 01:31:36]} {[%emt 00:00:28]} 7. c3 {[%clk 01:32:32]}
{[%emt 00:00:05]} O-O {[%clk 01:31:54]} {[%emt 00:00:12]} 8. Rd1 {[%clk
01:31:29]} {[%emt 00:01:33]} Re8 {[%clk 01:31:00]} {[%emt 00:01:24]} 9. d3
{[%clk 01:31:18]} {[%emt 00:00:41]} d5 {[%clk 01:30:15]} {[%emt 00:01:16]} 10.
exd5 {[%clk 01:30:31]} {[%emt 00:01:16]} Qxd5 {[%clk 01:29:27]} {[%emt
00:01:18]} 11. Bg5 {[%clk 01:28:56]} {[%emt 00:02:04]} Bg4 {[%clk 01:28:28]}
{[%emt 00:01:30]} 12. Bxf6 {[%clk 01:17:27]} {[%emt 00:11:59]} Bxf6 {[%clk
01:28:43]} {[%emt 00:00:14]} 13. Nbd2 {[%clk 01:17:46]} {[%emt 00:00:11]} Qd7
{[%clk 01:15:56]} {[%emt 00:13:17]} 14. Ne4 {[%clk 01:13:00]} {[%emt 00:05:17]}
Be7 {[%clk 01:14:54]} {[%emt 00:01:32]} 15. Qe3 {[%clk 01:11:44]} {[%emt
00:01:45]} b6 {[%clk 01:12:09]} {[%emt 00:03:16]} 16. Re1 {[%clk 01:07:43]}
{[%emt 00:04:31]} Rad8 {[%clk 01:05:35]} {[%emt 00:07:04]} 17. Ned2 {[%clk
00:43:13]} {[%emt 00:24:59]} f6 {[%clk 01:03:24]} {[%emt 00:02:42]} 18. Nc4
{[%clk 00:35:06]} {[%emt 00:08:37]} Bf8 {[%clk 00:59:38]} {[%emt 00:04:16]} 19.
a4 {[%clk 00:31:06]} {[%emt 00:04:31]} Qxd3 {[%clk 00:46:36]} {[%emt 00:13:33]}
20. Qxd3 {[%clk 00:31:22]} {[%emt 00:00:13]} Rxd3 {[%clk 00:47:01]} {[%emt
00:00:05]} 21. Ng5 {[%clk 00:31:47]} {[%emt 00:00:05]} Nd8 {[%clk 00:40:52]}
{[%emt 00:06:39]} 22. Be4 {[%clk 00:31:21]} {[%emt 00:00:56]} Rd7 {[%clk
00:41:11]} {[%emt 00:00:11]} 23. Bxh7+ {[%clk 00:31:39]} {[%emt 00:00:12]} Kh8
{[%clk 00:41:35]} {[%emt 00:00:06]} 24. Bg6 {[%clk 00:32:07]} {[%emt 00:00:02]}
Ree7 {[%clk 00:41:04]} {[%emt 00:01:01]} 25. h3 {[%clk 00:29:52]} {[%emt
00:02:45]} Be6 {[%clk 00:40:08]} {[%emt 00:01:26]} 26. Nxe6 {[%clk 00:29:13]}
{[%emt 00:01:09]} Nxe6 {[%clk 00:40:33]} {[%emt 00:00:05]} 27. Bf5 {[%clk
00:28:08]} {[%emt 00:01:34]} Rd8 {[%clk 00:36:57]} {[%emt 00:04:06]} 28. f4
{[%clk 00:28:11]} {[%emt 00:00:27]} g6 {[%clk 00:31:34]} {[%emt 00:05:53]} 29.
Bxe6 {[%clk 00:23:47]} {[%emt 00:04:55]} Rxe6 {[%clk 00:31:58]} {[%emt
00:00:05]} 30. fxe5 {[%clk 00:24:06]} {[%emt 00:00:11]} Rde8 {[%clk 00:32:03]}
{[%emt 00:00:24]} 31. Rad1 {[%clk 00:21:18]} {[%emt 00:03:19]} R8e7 {[%clk
00:29:45]} {[%emt 00:02:49]} 32. Rd8 {[%clk 00:20:45]} {[%emt 00:01:03]} Kg8
{[%clk 00:30:08]} {[%emt 00:00:06]} 33. Rf1 {[%clk 00:21:08]} {[%emt 00:00:06]}
f5 {[%clk 00:26:04]} {[%emt 00:04:36]} 34. Rfd1 {[%clk 00:14:51]} {[%emt
00:06:46]} a6 {[%clk 00:24:22]} {[%emt 00:02:13]} 35. Rb8 {[%clk 00:15:06]}
{[%emt 00:00:13]} Re8 {[%clk 00:24:13]} {[%emt 00:00:40]} 36. Rxe8 {[%clk
00:11:40]} {[%emt 00:03:57]} Rxe8 {[%clk 00:24:37]} {[%emt 00:00:05]} 37. Nxb6
{[%clk 00:12:03]} {[%emt 00:00:08]} Rxe5 {[%clk 00:25:01]} {[%emt 00:00:06]} 38.
Rd8 {[%clk 00:12:22]} {[%emt 00:00:11]} Re1+ {[%clk 00:24:23]} {[%emt
00:01:08]} 39. Kf2 {[%clk 00:12:43]} {[%emt 00:00:08]} Rb1 {[%clk 00:24:48]}
{[%emt 00:00:05]} 40. Nd7 {[%clk 00:07:12]} {[%emt 00:06:02]} Rxb2+ {[%clk
00:25:08]} {[%emt 00:00:10]} 41. Ke3 {[%clk 00:07:24]} {[%emt 00:00:16]} Rc2
{[%clk 00:25:20]} {[%emt 00:00:20]} 42. Rxf8+ {[%clk 00:06:39]} {[%emt
00:01:15]} Kg7 {[%clk 00:25:45]} {[%emt 00:00:05]} 43. Re8 {[%clk 00:03:39]}
{[%emt 00:03:28]} Rxc3+ {[%clk 00:25:49]} {[%emt 00:00:29]} 44. Kf4 {[%clk
00:13:03]} {[%emt 00:06:35]} Kf7 {[%clk 00:37:49]} {[%emt 00:04:00]} 45. Re3
{[%clk 00:12:23]} {[%emt 00:01:09]} Rc4+ {[%clk 00:36:02]} {[%emt 00:02:19]} 46.
Kg5 {[%clk 00:12:45]} {[%emt 00:00:07]} Rxa4 {[%clk 00:36:13]} {[%emt
00:00:20]} 47. Ne5+ {[%clk 00:12:39]} {[%emt 00:00:36]} Kg7 {[%clk 00:36:16]}
{[%emt 00:00:27]} 48. Nxg6 {[%clk 00:12:30]} {[%emt 00:00:39]} Rb4 {[%clk
00:34:49]} {[%emt 00:01:57]} 49. Re7+ {[%clk 00:12:46]} {[%emt 00:00:13]} Kg8
{[%clk 00:35:11]} {[%emt 00:00:08]} 50. Kh6 {[%clk 00:13:07]} {[%emt 00:00:10]}
1-0

[Event "Polofinale MCR junioru 2023"]
[Site "Czech Republic"]
[Date "2023.11.17"]
[Round "8.7"]
[White "Jirasko, Miroslav"]
[Black "Vojta, Jakub"]
[Result "0-1"]
[TimeControl "90 min per 40 moves + 15 min + 30 sec / move from move 1"]
[WhiteFideId "23729414"]
[BlackFideId "382515"]
[WhiteElo "2084"]
[BlackElo "2267"]

1. e4 {[%clk 01:25:13]} {[%emt 00:05:46]} c5 {[%clk 01:30:36]} {[%emt
00:00:25]} 2. Nf3 {[%clk 01:25:35]} {[%emt 00:00:07]} Nf6 {[%clk 01:30:57]}
{[%emt 00:00:09]} 3. Nc3 {[%clk 01:25:59]} {[%emt 00:00:06]} Nc6 {[%clk
01:31:14]} {[%emt 00:00:13]} 4. Bb5 {[%clk 01:26:26]} {[%emt 00:00:03]} Qc7
{[%clk 01:29:05]} {[%emt 00:02:40]} 5. O-O {[%clk 01:20:09]} {[%emt 00:06:46]}
Nd4 {[%clk 01:27:26]} {[%emt 00:02:09]} 6. Bc4 {[%clk 01:16:00]} {[%emt
00:04:39]} e6 {[%clk 01:25:57]} {[%emt 00:01:59]} 7. Re1 {[%clk 01:16:06]}
{[%emt 00:00:24]} Ng4 {[%clk 01:24:36]} {[%emt 00:01:51]} 8. g3 {[%clk
01:09:53]} {[%emt 00:06:43]} Nxf3+ {[%clk 01:22:33]} {[%emt 00:02:33]} 9. Qxf3
{[%clk 01:10:18]} {[%emt 00:00:05]} Ne5 {[%clk 01:22:58]} {[%emt 00:00:05]} 10.
Qe2 {[%clk 01:10:45]} {[%emt 00:00:04]} g5 {[%clk 01:21:25]} {[%emt 00:02:02]}
11. Nd5 {[%clk 01:07:39]} {[%emt 00:03:37]} exd5 {[%clk 01:19:46]} {[%emt
00:02:10]} 12. exd5 {[%clk 01:07:45]} {[%emt 00:00:23]} Bg7 {[%clk 01:10:47]}
{[%emt 00:09:29]} 13. f4 {[%clk 01:08:11]} {[%emt 00:00:04]} gxf4 {[%clk
01:10:58]} {[%emt 00:00:20]} 14. gxf4 {[%clk 01:08:09]} {[%emt 00:00:32]} d6
{[%clk 01:11:13]} {[%emt 00:00:15]} 15. c3 {[%clk 01:02:37]} {[%emt 00:06:01]}
Rg8 {[%clk 01:03:50]} {[%emt 00:07:52]} 16. Kh1 {[%clk 00:58:54]} {[%emt
00:04:14]} Bh3 {[%clk 00:54:15]} {[%emt 00:10:05]} 17. Qh5 {[%clk 00:48:42]}
{[%emt 00:10:42]} Qd7 {[%clk 00:54:16]} {[%emt 00:00:29]} 18. Bb5 {[%clk
00:45:38]} {[%emt 00:03:34]} Bg2+ {[%clk 00:51:41]} {[%emt 00:03:05]} 19. Kxg2
{[%clk 00:45:26]} {[%emt 00:00:42]} Qxb5 {[%clk 00:52:06]} {[%emt 00:00:05]} 20.
d4 {[%clk 00:43:09]} {[%emt 00:02:47]} cxd4 {[%clk 00:51:23]} {[%emt 00:01:13]}
21. cxd4 {[%clk 00:43:24]} {[%emt 00:00:15]} Qxd5+ {[%clk 00:51:13]} {[%emt
00:00:40]} 0-1

[Event "Polofinale MCR junioru 2023"]
[Site "Czech Republic"]
[Date "2023.11.17"]
[Round "8.8"]
[White "Tillman, Stanislav"]
[Black "Hurtik, Matej"]
[Result "1-0"]
[TimeControl "90 min per 40 moves + 15 min + 30 sec / move from move 1"]
[WhiteFideId "23714247"]
[BlackFideId "397997"]
[WhiteElo "2021"]
[BlackElo "2131"]

1. e4 {[%clk 01:30:00]} {[%emt 00:00:58]} c5 {[%clk 01:26:18]} {[%emt
00:04:43]} 2. Nf3 {[%clk 01:30:19]} {[%emt 00:00:10]} Nc6 {[%clk 01:26:42]}
{[%emt 00:00:06]} 3. Bb5 {[%clk 01:29:01]} {[%emt 00:01:49]} Nf6 {[%clk
01:26:24]} {[%emt 00:00:47]} 4. Nc3 {[%clk 01:28:48]} {[%emt 00:00:43]} Qc7
{[%clk 01:25:53]} {[%emt 00:01:01]} 5. O-O {[%clk 01:19:15]} {[%emt 00:10:03]}
e6 {[%clk 01:21:30]} {[%emt 00:04:53]} 6. Re1 {[%clk 01:17:55]} {[%emt
00:01:50]} Be7 {[%clk 01:15:54]} {[%emt 00:06:06]} 7. d4 {[%clk 01:12:04]}
{[%emt 00:06:22]} cxd4 {[%clk 01:16:16]} {[%emt 00:00:08]} 8. Nxd4 {[%clk
01:12:27]} {[%emt 00:00:06]} Nxd4 {[%clk 01:13:11]} {[%emt 00:03:36]} 9. Qxd4
{[%clk 01:12:51]} {[%emt 00:00:05]} Ng4 {[%clk 01:11:12]} {[%emt 00:02:29]} 10.
Qxg7 {[%clk 01:04:43]} {[%emt 00:08:38]} Qxh2+ {[%clk 00:58:24]} {[%emt
00:13:19]} 11. Kf1 {[%clk 01:05:10]} {[%emt 00:00:03]} Rf8 {[%clk 00:39:43]}
{[%emt 00:19:10]} 12. Qxg4 {[%clk 01:04:25]} {[%emt 00:01:15]} f5 {[%clk
00:39:12]} {[%emt 00:01:01]} 13. Qh3 {[%clk 00:59:12]} {[%emt 00:05:44]} Qc7
{[%clk 00:38:03]} {[%emt 00:01:38]} 14. Qh5+ {[%clk 00:55:26]} {[%emt
00:04:17]} Kd8 {[%clk 00:38:24]} {[%emt 00:00:09]} 15. Bh6 {[%clk 00:53:05]}
{[%emt 00:02:50]} Rg8 {[%clk 00:34:54]} {[%emt 00:04:01]} 16. exf5 {[%clk
00:51:52]} {[%emt 00:01:43]} b6 {[%clk 00:32:26]} {[%emt 00:02:59]} 17. f6
{[%clk 00:51:02]} {[%emt 00:01:20]} 1-0